[Event "GrandPrix_29.05"]
[Site "Chess.com"]
[Date "2020.05.29"]
[Round "5"]
[White "DrVelja"]
[Black "Tokarev_Sergey"]
[Result "1-0"]
[WhiteElo "2142"]
[BlackElo "2004"]
[TimeControl "600+2"]
[EndTime "11:21:46 PDT"]
[Termination "DrVelja won by resignation"]

1. e4 {[%clk 0:10:01.9]} 1... e6 {[%clk 0:09:46]} 2. d4 {[%clk 0:10:02.6]} 2...
d5 {[%clk 0:09:43.7]} 3. e5 {[%clk 0:10:04.2]} 3... c5 {[%clk 0:09:44]} 4. c3
{[%clk 0:10:05.6]} 4... Nc6 {[%clk 0:09:44.2]} 5. Nf3 {[%clk 0:10:07.2]} 5...
Qb6 {[%clk 0:09:41.1]} 6. Bd3 {[%clk 0:10:08]} 6... Bd7 {[%clk 0:09:41]} 7. dxc5
{[%clk 0:10:08.9]} 7... Bxc5 {[%clk 0:09:41]} 8. O-O {[%clk 0:10:10.6]} 8...
Nge7 {[%clk 0:09:36.8]} 9. b4 {[%clk 0:09:41.7]} 9... Bxb4 {[%clk 0:09:16.3]}
10. cxb4 {[%clk 0:09:43.6]} 10... Nxb4 {[%clk 0:09:17]} 11. Be3 {[%clk
0:09:23.8]} 11... Qd8 {[%clk 0:08:44.1]} 12. Bc5 {[%clk 0:09:18.2]} 12... Nxd3
{[%clk 0:08:39.2]} 13. Qxd3 {[%clk 0:09:20.1]} 13... Rc8 {[%clk 0:08:26]} 14.
Ba3 {[%clk 0:08:51.5]} 14... Qb6 {[%clk 0:08:14.5]} 15. Nd4 {[%clk 0:07:46.2]}
15... Rc4 {[%clk 0:08:02.6]} 16. Bxe7 {[%clk 0:06:31]} 16... Rxd4 {[%clk
0:07:25.1]} 17. Qa3 {[%clk 0:06:29.2]} 17... Bb5 {[%clk 0:07:08.6]} 18. Bc5
{[%clk 0:06:13.7]} 18... Qc6 {[%clk 0:06:59.7]} 19. Bxd4 {[%clk 0:06:07.8]}
19... Bxf1 {[%clk 0:07:00]} 20. Nd2 {[%clk 0:06:01.2]} 20... Bc4 {[%clk
0:06:39.7]} 21. Bxa7 {[%clk 0:05:46.6]} 21... Kd7 {[%clk 0:06:32.9]} 22. Bd4
{[%clk 0:05:44.9]} 22... Rc8 {[%clk 0:06:15.3]} 23. Rc1 {[%clk 0:05:35.9]} 23...
b5 {[%clk 0:06:14.9]} 24. Qg3 {[%clk 0:05:21.9]} 24... g6 {[%clk 0:06:09.9]} 25.
a3 {[%clk 0:05:13.8]} 25... Ra8 {[%clk 0:06:04.7]} 26. h3 {[%clk 0:05:11.1]}
26... Qa6 {[%clk 0:06:02.4]} 27. Nxc4 {[%clk 0:05:03.9]} 27... bxc4 {[%clk
0:06:02.7]} 28. Rc3 {[%clk 0:05:05.5]} 28... Ke8 {[%clk 0:05:53]} 29. Qf4 {[%clk
0:05:04.4]} 29... Qb5 {[%clk 0:05:47.9]} 30. Kh2 {[%clk 0:04:58.1]} 30... h5
{[%clk 0:05:47.1]} 31. Rf3 {[%clk 0:04:55.7]} 31... Qb7 {[%clk 0:05:43.1]} 32.
Qf6 {[%clk 0:04:55.6]} 32... Rc8 {[%clk 0:05:32.2]} 33. Qh8+ {[%clk 0:04:55.6]}
33... Ke7 {[%clk 0:05:31.4]} 34. Qf6+ {[%clk 0:04:57.1]} 34... Ke8 {[%clk
0:05:29.3]} 35. Qh8+ {[%clk 0:04:58.5]} 35... Ke7 {[%clk 0:05:30]} 36. Rxf7+
{[%clk 0:05:00.1]} 36... Kxf7 {[%clk 0:05:28.3]} 37. Qh7+ {[%clk 0:05:01.6]} 1-0

[Event "GrandPrix_29.05"]
[Site "Chess.com"]
[Date "2020.05.29"]
[Round "5"]
[White "cantdefyme"]
[Black "monalize"]
[Result "0-1"]
[WhiteElo "2044"]
[BlackElo "2050"]
[TimeControl "600+2"]
[EndTime "11:21:49 PDT"]
[Termination "monalize won by resignation"]

1. e4 {[%clk 0:10:01.9]} 1... c5 {[%clk 0:10:00.1]} 2. Nf3 {[%clk 0:09:56]} 2...
d6 {[%clk 0:09:59.3]} 3. d4 {[%clk 0:09:57.1]} 3... cxd4 {[%clk 0:09:59.5]} 4.
Nxd4 {[%clk 0:09:59]} 4... Nf6 {[%clk 0:09:59.7]} 5. Nc3 {[%clk 0:10:00.3]} 5...
a6 {[%clk 0:10:00.9]} 6. Bc4 {[%clk 0:10:01.3]} 6... e6 {[%clk 0:09:57]} 7. Bb3
{[%clk 0:10:01.5]} 7... b5 {[%clk 0:09:52.9]} 8. O-O {[%clk 0:10:01]} 8... Be7
{[%clk 0:09:50.4]} 9. Qf3 {[%clk 0:09:48.8]} 9... Qb6 {[%clk 0:09:40.9]} 10. Be3
{[%clk 0:09:32.8]} 10... Qb7 {[%clk 0:09:41]} 11. Qg3 {[%clk 0:08:24.6]} 11...
Nbd7 {[%clk 0:09:13.7]} 12. f3 {[%clk 0:06:54.7]} 12... O-O {[%clk 0:08:50.7]}
13. Bh6 {[%clk 0:06:23.6]} 13... Ne8 {[%clk 0:08:24.6]} 14. Bxe6 {[%clk
0:03:40]} 14... fxe6 {[%clk 0:08:19.5]} 15. Nxe6 {[%clk 0:03:41.6]} 15... Rf7
{[%clk 0:08:18.1]} 16. Nd5 {[%clk 0:03:42.7]} 16... Ne5 {[%clk 0:07:51.4]} 17.
Ndc7 {[%clk 0:03:30.9]} 17... Bxe6 {[%clk 0:07:23.4]} 18. Nxe6 {[%clk
0:03:29.4]} 18... Ng6 {[%clk 0:06:31.1]} 19. Bxg7 {[%clk 0:02:44.7]} 19... Nxg7
{[%clk 0:06:26.6]} 20. Nxg7 {[%clk 0:02:46.6]} 20... Rxg7 {[%clk 0:06:24.9]} 0-1

[Event "GrandPrix_29.05"]
[Site "Chess.com"]
[Date "2020.05.29"]
[Round "5"]
[White "HElissalt"]
[Black "gygygygygyggygygygy"]
[Result "0-1"]
[WhiteElo "1718"]
[BlackElo "1994"]
[TimeControl "600+2"]
[EndTime "11:21:49 PDT"]
[Termination "gygygygygyggygygygy won by resignation"]

1. Nf3 {[%clk 0:10:01.9]} 1... Nf6 {[%clk 0:09:59.7]} 2. c4 {[%clk 0:09:59.1]}
2... g6 {[%clk 0:09:58.2]} 3. g3 {[%clk 0:09:58.3]} 3... Bg7 {[%clk 0:09:59.5]}
4. Bg2 {[%clk 0:09:59.6]} 4... O-O {[%clk 0:10:00.9]} 5. O-O {[%clk 0:10:00.7]}
5... d6 {[%clk 0:10:01]} 6. Nc3 {[%clk 0:10:01.6]} 6... e5 {[%clk 0:10:02.5]} 7.
d3 {[%clk 0:10:01.7]} 7... Nc6 {[%clk 0:10:03.6]} 8. Rb1 {[%clk 0:10:02.2]} 8...
a5 {[%clk 0:10:03.8]} 9. Bg5 {[%clk 0:09:53.5]} 9... h6 {[%clk 0:10:02.4]} 10.
Bxf6 {[%clk 0:09:51.9]} 10... Bxf6 {[%clk 0:10:03.4]} 11. Nd5 {[%clk 0:09:43.2]}
11... Bg7 {[%clk 0:10:02.8]} 12. Nd2 {[%clk 0:09:44.1]} 12... Ne7 {[%clk
0:10:03.1]} 13. Qc2 {[%clk 0:09:14.9]} 13... c6 {[%clk 0:09:32.7]} 14. Nxe7+
{[%clk 0:09:10.1]} 14... Qxe7 {[%clk 0:09:33.2]} 15. b3 {[%clk 0:09:07.9]} 15...
Be6 {[%clk 0:09:31.6]} 16. a3 {[%clk 0:08:48]} 16... d5 {[%clk 0:09:30.5]} 17.
b4 {[%clk 0:08:48.8]} 17... axb4 {[%clk 0:09:29.5]} 18. axb4 {[%clk 0:08:49.4]}
18... Ra3 {[%clk 0:09:20.9]} 19. b5 {[%clk 0:08:32.5]} 19... Rfa8 {[%clk
0:08:54.3]} 20. bxc6 {[%clk 0:07:51.2]} 20... bxc6 {[%clk 0:08:35.9]} 21. cxd5
{[%clk 0:07:51.2]} 21... cxd5 {[%clk 0:08:35.7]} 22. Rfc1 {[%clk 0:07:20.7]}
22... Ra2 {[%clk 0:08:10.6]} 23. Rb2 {[%clk 0:07:08.9]} 23... Rxb2 {[%clk
0:08:08.6]} 24. Qxb2 {[%clk 0:07:09.4]} 24... e4 {[%clk 0:08:09.4]} 25. Qb6
{[%clk 0:07:06.2]} 25... exd3 {[%clk 0:08:06.1]} 26. exd3 {[%clk 0:07:02.6]}
26... Qa3 {[%clk 0:08:01.8]} 27. Nb3 {[%clk 0:06:29.9]} 27... Qb2 {[%clk
0:06:54.9]} 28. Re1 {[%clk 0:06:09.8]} 28... Ra3 {[%clk 0:06:18.7]} 29. Rxe6
{[%clk 0:05:46.3]} 29... Qb1+ {[%clk 0:06:02.1]} 30. Bf1 {[%clk 0:05:43.9]}
30... fxe6 {[%clk 0:06:01.8]} 31. Qxe6+ {[%clk 0:05:41.5]} 31... Kh7 {[%clk
0:06:02.4]} 32. Nd2 {[%clk 0:05:38.9]} 32... Qd1 {[%clk 0:05:56.8]} 33. Qe3
{[%clk 0:05:22.4]} 33... Ra2 {[%clk 0:05:00.3]} 0-1

[Event "GrandPrix_29.05"]
[Site "Chess.com"]
[Date "2020.05.29"]
[Round "5"]
[White "matej2221"]
[Black "DanielDardha2005"]
[Result "0-1"]
[WhiteElo "2103"]
[BlackElo "2342"]
[TimeControl "600+2"]
[EndTime "11:21:51 PDT"]
[Termination "DanielDardha2005 won by resignation"]

1. e4 {[%clk 0:10:01.9]} 1... c5 {[%clk 0:09:58.3]} 2. Nf3 {[%clk 0:09:55.5]}
2... Nc6 {[%clk 0:09:58.1]} 3. Bb5 {[%clk 0:09:55.4]} 3... Nf6 {[%clk
0:09:58.4]} 4. Nc3 {[%clk 0:09:45.7]} 4... g6 {[%clk 0:09:58.9]} 5. Bxc6 {[%clk
0:09:41.1]} 5... dxc6 {[%clk 0:09:59.3]} 6. h3 {[%clk 0:09:41.8]} 6... Bg7
{[%clk 0:09:59.3]} 7. d3 {[%clk 0:09:43.3]} 7... O-O {[%clk 0:09:55.5]} 8. Be3
{[%clk 0:09:43.9]} 8... b6 {[%clk 0:09:56.3]} 9. Qd2 {[%clk 0:09:44.5]} 9... Re8
{[%clk 0:09:50]} 10. O-O {[%clk 0:09:41.9]} 10... e5 {[%clk 0:09:49]} 11. Bh6
{[%clk 0:09:37.3]} 11... Bh8 {[%clk 0:09:42.2]} 12. a3 {[%clk 0:09:29.2]} 12...
Nh5 {[%clk 0:09:38.7]} 13. b4 {[%clk 0:09:23.6]} 13... f5 {[%clk 0:09:22.9]} 14.
exf5 {[%clk 0:08:19.5]} 14... gxf5 {[%clk 0:08:56.7]} 15. bxc5 {[%clk
0:08:17.8]} 15... Re6 {[%clk 0:08:34]} 16. g4 {[%clk 0:06:18.7]} 16... fxg4
{[%clk 0:07:08.6]} 17. Bg5 {[%clk 0:04:58.8]} 17... Qf8 {[%clk 0:06:55.2]} 18.
hxg4 {[%clk 0:04:31.7]} 18... Qxf3 {[%clk 0:06:49.3]} 19. gxh5 {[%clk
0:04:31.9]} 19... Qg4+ {[%clk 0:06:44.5]} 20. Kh2 {[%clk 0:04:01.9]} 20... Qxh5+
{[%clk 0:06:40.7]} 21. Kg1 {[%clk 0:03:45.7]} 21... Rg6 {[%clk 0:06:24]} 22. Ne4
{[%clk 0:03:46.6]} 22... Bf5 {[%clk 0:06:24.1]} 0-1

[Event "GrandPrix_29.05"]
[Site "Chess.com"]
[Date "2020.05.29"]
[Round "5"]
[White "Chessbuster123"]
[Black "AnotherGrumpy"]
[Result "0-1"]
[WhiteElo "1960"]
[BlackElo "1875"]
[TimeControl "600+2"]
[EndTime "11:22:10 PDT"]
[Termination "AnotherGrumpy won by resignation"]

1. d4 {[%clk 0:10:01.9]} 1... d5 {[%clk 0:09:50.8]} 2. c4 {[%clk 0:10:02.6]}
2... c6 {[%clk 0:09:50.8]} 3. cxd5 {[%clk 0:10:03.4]} 3... cxd5 {[%clk 0:09:51]}
4. Nc3 {[%clk 0:10:04.8]} 4... e5 {[%clk 0:09:49.2]} 5. dxe5 {[%clk 0:09:36.1]}
5... d4 {[%clk 0:09:47]} 6. Nb1 {[%clk 0:09:31.8]} 6... Qa5+ {[%clk 0:09:42.5]}
7. Bd2 {[%clk 0:09:31.1]} 7... Qxe5 {[%clk 0:09:41.4]} 8. Nf3 {[%clk 0:09:31.4]}
8... Qd5 {[%clk 0:09:42.5]} 9. g3 {[%clk 0:09:29.2]} 9... Nf6 {[%clk 0:09:40.2]}
10. Bg2 {[%clk 0:09:29.3]} 10... Nc6 {[%clk 0:09:40.9]} 11. O-O {[%clk
0:09:29.3]} 11... Be7 {[%clk 0:09:37.9]} 12. Bf4 {[%clk 0:09:27.1]} 12... O-O
{[%clk 0:09:34.1]} 13. Nbd2 {[%clk 0:09:15.1]} 13... Qb5 {[%clk 0:09:01]} 14.
Nb3 {[%clk 0:09:12.7]} 14... Rd8 {[%clk 0:09:01.8]} 15. Rc1 {[%clk 0:08:49.5]}
15... Be6 {[%clk 0:08:57.9]} 16. Ne1 {[%clk 0:08:42.5]} 16... Nb4 {[%clk
0:08:46.2]} 17. Nxd4 {[%clk 0:08:28.9]} 17... Qa6 {[%clk 0:08:36.9]} 18. a3
{[%clk 0:08:17.1]} 18... Nc6 {[%clk 0:08:34.9]} 19. Nec2 {[%clk 0:07:41.5]}
19... Bg4 {[%clk 0:08:10.6]} 20. Qd2 {[%clk 0:07:05.9]} 20... Nxd4 {[%clk
0:08:01.9]} 21. Nxd4 {[%clk 0:07:06.1]} 21... Nd5 {[%clk 0:08:02.9]} 22. h3
{[%clk 0:06:45.8]} 22... Bh5 {[%clk 0:07:44]} 23. g4 {[%clk 0:06:41.7]} 23...
Bg6 {[%clk 0:07:41.2]} 24. Bg3 {[%clk 0:06:38.7]} 24... Nf6 {[%clk 0:07:29.8]}
25. Qe3 {[%clk 0:06:29.3]} 25... Bd6 {[%clk 0:07:29.2]} 26. Bxd6 {[%clk
0:06:18.2]} 26... Rxd6 {[%clk 0:07:31.1]} 27. f4 {[%clk 0:06:15.1]} 27... Re8
{[%clk 0:07:25.9]} 28. Qc3 {[%clk 0:05:47.1]} 28... Be4 {[%clk 0:07:22.4]} 29.
Nf3 {[%clk 0:05:26.5]} 29... Nd5 {[%clk 0:07:14.2]} 30. Qd2 {[%clk 0:05:23.9]}
30... Bxf3 {[%clk 0:07:05.1]} 31. Bxf3 {[%clk 0:05:01.7]} 31... Qb6+ {[%clk
0:06:58.1]} 32. Kh1 {[%clk 0:04:54.2]} 32... Ne3 {[%clk 0:06:59.1]} 33. Qc3
{[%clk 0:04:43.7]} 33... Nxf1 {[%clk 0:06:58.1]} 34. Rxf1 {[%clk 0:04:45.6]}
34... h6 {[%clk 0:06:58.2]} 35. f5 {[%clk 0:04:33.2]} 35... Red8 {[%clk
0:06:52.8]} 36. Be4 {[%clk 0:04:26.3]} 36... Rd1 {[%clk 0:06:50]} 37. Bg2 {[%clk
0:04:14.8]} 37... Rxf1+ {[%clk 0:06:49.7]} 38. Bxf1 {[%clk 0:04:16.7]} 38... Qf2
{[%clk 0:06:47.1]} 39. Qf3 {[%clk 0:04:14.9]} 39... Qxf3+ {[%clk 0:06:47.8]} 40.
exf3 {[%clk 0:04:16.8]} 40... Rd1 {[%clk 0:06:48.4]} 41. Kg1 {[%clk 0:04:16.4]}
41... Kf8 {[%clk 0:06:46.7]} 42. b4 {[%clk 0:04:16.2]} 42... Ra1 {[%clk
0:06:47]} 43. f4 {[%clk 0:04:10.8]} 43... Rxa3 {[%clk 0:06:47.6]} 44. b5 {[%clk
0:04:10.9]} 44... Ra4 {[%clk 0:06:47.1]} 45. g5 {[%clk 0:04:10.7]} 45... Rxf4
{[%clk 0:06:48]} 46. f6 {[%clk 0:04:12.6]} 46... hxg5 {[%clk 0:06:47.8]} 47.
fxg7+ {[%clk 0:04:13.8]} 47... Kxg7 {[%clk 0:06:49.7]} 48. Bd3 {[%clk
0:04:15.1]} 48... Rf3 {[%clk 0:06:45.2]} 0-1

[Event "GrandPrix_29.05"]
[Site "Chess.com"]
[Date "2020.05.29"]
[Round "5"]
[White "Andrei_Belozerov"]
[Black "Tesla37"]
[Result "0-1"]
[WhiteElo "2605"]
[BlackElo "2910"]
[TimeControl "600+2"]
[EndTime "11:22:29 PDT"]
[Termination "Tesla37 won by resignation"]

1. e4 {[%clk 0:10:01.9]} 1... c5 {[%clk 0:09:59.6]} 2. Nf3 {[%clk 0:10:02.2]}
2... e6 {[%clk 0:10:00.8]} 3. d4 {[%clk 0:10:03.4]} 3... cxd4 {[%clk 0:10:01.7]}
4. Nxd4 {[%clk 0:10:05]} 4... Nc6 {[%clk 0:10:03.2]} 5. Nc3 {[%clk 0:10:05.4]}
5... a6 {[%clk 0:10:03.6]} 6. Nxc6 {[%clk 0:10:04.4]} 6... bxc6 {[%clk 0:10:04]}
7. Bd3 {[%clk 0:10:05.9]} 7... d5 {[%clk 0:10:04.8]} 8. O-O {[%clk 0:10:06.2]}
8... Nf6 {[%clk 0:10:06.1]} 9. Re1 {[%clk 0:10:05.9]} 9... Be7 {[%clk
0:10:06.3]} 10. e5 {[%clk 0:10:05.9]} 10... Nd7 {[%clk 0:10:06.7]} 11. Qg4
{[%clk 0:10:06.5]} 11... Kf8 {[%clk 0:10:06.1]} 12. Na4 {[%clk 0:09:54.3]} 12...
Qa5 {[%clk 0:09:55.8]} 13. c3 {[%clk 0:09:34.8]} 13... h5 {[%clk 0:09:53.5]} 14.
Qd1 {[%clk 0:09:32.8]} 14... Qc7 {[%clk 0:09:46.5]} 15. Qe2 {[%clk 0:09:12.6]}
15... c5 {[%clk 0:09:45]} 16. b4 {[%clk 0:08:09.6]} 16... c4 {[%clk 0:09:20.5]}
17. Bc2 {[%clk 0:08:05.8]} 17... Bb7 {[%clk 0:09:17.8]} 18. Be3 {[%clk
0:06:51.3]} 18... Qxe5 {[%clk 0:08:41.2]} 19. f4 {[%clk 0:06:49.8]} 19... Qc7
{[%clk 0:08:37.2]} 20. Bd4 {[%clk 0:06:38.7]} 20... Bf6 {[%clk 0:08:04]} 21.
Bxf6 {[%clk 0:06:29.8]} 21... gxf6 {[%clk 0:08:01.2]} 22. Qe3 {[%clk 0:06:11.2]}
22... h4 {[%clk 0:07:59.1]} 23. Rad1 {[%clk 0:05:59.9]} 23... Qc6 {[%clk
0:07:41.7]} 24. Qd4 {[%clk 0:05:38.7]} 24... e5 {[%clk 0:06:14.6]} 25. fxe5
{[%clk 0:05:36.8]} 25... fxe5 {[%clk 0:06:14.8]} 26. Rxe5 {[%clk 0:05:35.2]}
26... Nxe5 {[%clk 0:06:15.4]} 27. Qxe5 {[%clk 0:05:35]} 27... Rg8 {[%clk
0:06:16.8]} 28. Nc5 {[%clk 0:05:27.9]} 28... Re8 {[%clk 0:06:13.6]} 29. Qf5
{[%clk 0:04:54.3]} 29... Re2 {[%clk 0:05:37.7]} 30. g4 {[%clk 0:04:37.7]} 30...
Bc8 {[%clk 0:05:23.3]} 31. Qxd5 {[%clk 0:04:30.3]} 31... Qxd5 {[%clk 0:05:11.2]}
32. Rxd5 {[%clk 0:04:29]} 32... Rxc2 {[%clk 0:05:10.7]} 0-1

[Event "GrandPrix_29.05"]
[Site "Chess.com"]
[Date "2020.05.29"]
[Round "5"]
[White "RussianChessFighter"]
[Black "bsnsun"]
[Result "1-0"]
[WhiteElo "2337"]
[BlackElo "2085"]
[TimeControl "600+2"]
[EndTime "11:22:55 PDT"]
[Termination "RussianChessFighter won by resignation"]

1. c4 {[%clk 0:10:01.9]} 1... Nf6 {[%clk 0:10:00.2]} 2. Nc3 {[%clk 0:10:02.9]}
2... c5 {[%clk 0:09:56.6]} 3. g3 {[%clk 0:10:03.7]} 3... Nc6 {[%clk 0:09:54.8]}
4. Bg2 {[%clk 0:10:04.3]} 4... g6 {[%clk 0:09:55.8]} 5. Nh3 {[%clk 0:10:03.2]}
5... Bg7 {[%clk 0:09:55.9]} 6. Nf4 {[%clk 0:10:03.9]} 6... O-O {[%clk
0:09:56.5]} 7. h4 {[%clk 0:10:03]} 7... h5 {[%clk 0:09:56.4]} 8. O-O {[%clk
0:10:02.8]} 8... d6 {[%clk 0:09:57.3]} 9. d3 {[%clk 0:10:03.8]} 9... Bg4 {[%clk
0:09:52.5]} 10. a3 {[%clk 0:10:01.6]} 10... a5 {[%clk 0:09:39]} 11. Rb1 {[%clk
0:10:01]} 11... Qd7 {[%clk 0:09:35.1]} 12. Bd2 {[%clk 0:09:45.6]} 12... Rfc8
{[%clk 0:09:21.2]} 13. Ncd5 {[%clk 0:09:40.2]} 13... Nxd5 {[%clk 0:09:19]} 14.
Nxd5 {[%clk 0:09:40.6]} 14... Bh3 {[%clk 0:09:11.3]} 15. Nb6 {[%clk 0:09:39.8]}
15... Qe6 {[%clk 0:08:56.1]} 16. Nxa8 {[%clk 0:09:38.3]} 16... Bxg2 {[%clk
0:08:52.7]} 17. Kxg2 {[%clk 0:09:39.2]} 17... Rxa8 {[%clk 0:08:53.7]} 18. Bc3
{[%clk 0:09:38.4]} 18... Nd4 {[%clk 0:08:45.3]} 19. e3 {[%clk 0:09:34]} 19...
Nc6 {[%clk 0:08:43.9]} 20. Qf3 {[%clk 0:09:32.9]} 20... Rb8 {[%clk 0:08:33.3]}
21. Qd5 {[%clk 0:09:01.8]} 21... Qg4 {[%clk 0:08:28.7]} 22. Bxg7 {[%clk
0:08:57.8]} 22... Kxg7 {[%clk 0:08:29.1]} 23. Qe4 {[%clk 0:08:59.4]} 23... Qd7
{[%clk 0:08:11.7]} 24. d4 {[%clk 0:08:58.6]} 24... cxd4 {[%clk 0:07:11.9]} 25.
exd4 {[%clk 0:08:53.8]} 25... e5 {[%clk 0:07:11.7]} 26. dxe5 {[%clk 0:08:43.3]}
26... dxe5 {[%clk 0:07:11.5]} 27. b4 {[%clk 0:08:42.7]} 27... axb4 {[%clk
0:07:01.8]} 28. axb4 {[%clk 0:08:44.6]} 28... Re8 {[%clk 0:06:24.2]} 29. Rfe1
{[%clk 0:07:54.3]} 29... Qe7 {[%clk 0:04:36.4]} 30. b5 {[%clk 0:07:45.3]} 30...
Nd4 {[%clk 0:04:34.7]} 31. Rbd1 {[%clk 0:07:45.5]} 31... Nf5 {[%clk 0:03:27.6]}
32. Rd5 {[%clk 0:07:42.7]} 32... f6 {[%clk 0:03:26.1]} 33. Qd3 {[%clk
0:07:40.9]} 33... e4 {[%clk 0:03:11]} 34. Qd1 {[%clk 0:07:27.3]} 34... Qe6
{[%clk 0:02:57]} 35. Rd7+ {[%clk 0:07:25.6]} 35... Kh6 {[%clk 0:02:57.1]} 36.
Qd5 {[%clk 0:07:23.8]} 36... Qb6 {[%clk 0:02:38]} 37. Qf7 {[%clk 0:07:17.7]}
37... Rh8 {[%clk 0:02:32.4]} 38. Rxe4 {[%clk 0:07:13.1]} 1-0

[Event "GrandPrix_29.05"]
[Site "Chess.com"]
[Date "2020.05.29"]
[Round "5"]
[White "lelajavakhishvili"]
[Black "viktorskliarov"]
[Result "0-1"]
[WhiteElo "2014"]
[BlackElo "2192"]
[TimeControl "600+2"]
[EndTime "11:23:33 PDT"]
[Termination "viktorskliarov won by resignation"]

1. d4 {[%clk 0:10:01.9]} 1... Nf6 {[%clk 0:09:58.6]} 2. c4 {[%clk 0:10:01.4]}
2... e6 {[%clk 0:09:59.8]} 3. Nf3 {[%clk 0:10:01.4]} 3... b6 {[%clk 0:10:01.1]}
4. g3 {[%clk 0:10:02.1]} 4... Bb7 {[%clk 0:10:02.5]} 5. Bg2 {[%clk 0:10:02.9]}
5... Be7 {[%clk 0:10:04.1]} 6. O-O {[%clk 0:10:03.6]} 6... O-O {[%clk
0:10:05.8]} 7. Nc3 {[%clk 0:10:04.7]} 7... Ne4 {[%clk 0:10:07.1]} 8. Bd2 {[%clk
0:10:05.7]} 8... Nxd2 {[%clk 0:10:08.5]} 9. Qxd2 {[%clk 0:10:06.4]} 9... d6
{[%clk 0:10:09.9]} 10. h4 {[%clk 0:09:53.9]} 10... Nd7 {[%clk 0:10:07.2]} 11. h5
{[%clk 0:09:41.8]} 11... Bf6 {[%clk 0:09:59.8]} 12. Rad1 {[%clk 0:09:33.1]}
12... Qe7 {[%clk 0:08:57.3]} 13. g4 {[%clk 0:09:24.2]} 13... h6 {[%clk
0:07:47.5]} 14. e4 {[%clk 0:09:20.8]} 14... e5 {[%clk 0:07:41.8]} 15. Rfe1
{[%clk 0:09:03.7]} 15... Rae8 {[%clk 0:07:27.2]} 16. d5 {[%clk 0:08:22.4]} 16...
a5 {[%clk 0:07:08.6]} 17. Ne2 {[%clk 0:08:21.1]} 17... Nc5 {[%clk 0:06:55]} 18.
Ng3 {[%clk 0:08:20]} 18... Bc8 {[%clk 0:06:53.6]} 19. Nf5 {[%clk 0:08:09.4]}
19... Bxf5 {[%clk 0:06:49.1]} 20. gxf5 {[%clk 0:08:09]} 20... Bg5 {[%clk
0:06:49.7]} 21. Nxg5 {[%clk 0:07:39]} 21... Qxg5 {[%clk 0:06:50]} 22. Qe2 {[%clk
0:07:38.2]} 22... g6 {[%clk 0:06:29.1]} 23. Rc1 {[%clk 0:06:33.9]} 23... gxf5
{[%clk 0:04:58.8]} 24. Rc3 {[%clk 0:06:16.3]} 24... Nxe4 {[%clk 0:04:16.8]} 25.
Rh3 {[%clk 0:06:16.6]} 25... Kh8 {[%clk 0:04:09.3]} 26. Kh1 {[%clk 0:06:06.5]}
26... Rg8 {[%clk 0:03:56.6]} 27. Bf3 {[%clk 0:05:01.6]} 27... Nf6 {[%clk
0:03:51.4]} 28. Rg3 {[%clk 0:04:50.3]} 28... Qh4+ {[%clk 0:03:49.9]} 29. Kg2
{[%clk 0:04:51.2]} 29... f4 {[%clk 0:03:50.5]} 30. Rh1 {[%clk 0:04:51.4]} 30...
Rxg3+ {[%clk 0:03:50]} 31. fxg3 {[%clk 0:04:50.9]} 31... Qxg3+ {[%clk
0:03:51.1]} 32. Kf1 {[%clk 0:04:52]} 32... e4 {[%clk 0:03:43.7]} 0-1

[Event "GrandPrix_29.05"]
[Site "Chess.com"]
[Date "2020.05.29"]
[Round "5"]
[White "Borisss85"]
[Black "ebret"]
[Result "1-0"]
[WhiteElo "2034"]
[BlackElo "2042"]
[TimeControl "600+2"]
[EndTime "11:23:40 PDT"]
[Termination "Borisss85 won by resignation"]

1. e4 {[%clk 0:10:00.2]} 1... e5 {[%clk 0:09:59.7]} 2. Nf3 {[%clk 0:09:58]} 2...
Nc6 {[%clk 0:10:00.2]} 3. Bb5 {[%clk 0:09:58.3]} 3... a6 {[%clk 0:10:00.2]} 4.
Ba4 {[%clk 0:09:59.1]} 4... Nf6 {[%clk 0:10:00.8]} 5. O-O {[%clk 0:09:59.3]}
5... Be7 {[%clk 0:10:01.7]} 6. Re1 {[%clk 0:09:59.4]} 6... b5 {[%clk 0:10:01.9]}
7. Bb3 {[%clk 0:09:59.7]} 7... d6 {[%clk 0:10:02.7]} 8. c3 {[%clk 0:09:52.2]}
8... O-O {[%clk 0:10:02.4]} 9. h3 {[%clk 0:09:52.6]} 9... Na5 {[%clk 0:10:02.8]}
10. Bc2 {[%clk 0:09:53]} 10... c5 {[%clk 0:10:03.9]} 11. d4 {[%clk 0:09:53.6]}
11... Qc7 {[%clk 0:10:03.3]} 12. Nbd2 {[%clk 0:09:53.7]} 12... Rd8 {[%clk
0:10:03.7]} 13. b3 {[%clk 0:09:31.3]} 13... cxd4 {[%clk 0:08:57.9]} 14. cxd4
{[%clk 0:09:30.2]} 14... exd4 {[%clk 0:08:59]} 15. Bb2 {[%clk 0:09:28]} 15...
Bb7 {[%clk 0:08:14.9]} 16. Nxd4 {[%clk 0:09:23.2]} 16... Bf8 {[%clk 0:07:13.9]}
17. Nf5 {[%clk 0:09:02.9]} 17... Nd7 {[%clk 0:07:00.9]} 18. Nh6+ {[%clk
0:07:22]} 18... Kh8 {[%clk 0:06:53.7]} 19. Nxf7+ {[%clk 0:07:14.3]} 19... Kg8
{[%clk 0:06:55.2]} 20. Nxd8 {[%clk 0:07:03.1]} 20... Rxd8 {[%clk 0:06:57.1]} 21.
Rc1 {[%clk 0:07:01.8]} 21... Qb6 {[%clk 0:06:56.6]} 22. Nf3 {[%clk 0:06:54.4]}
22... Ne5 {[%clk 0:06:47.7]} 23. Nd4 {[%clk 0:06:06.3]} 23... Be7 {[%clk
0:06:11.8]} 24. Nf5 {[%clk 0:05:45]} 24... Bf6 {[%clk 0:06:12.4]} 25. Bb1 {[%clk
0:05:29.9]} 25... Nf3+ {[%clk 0:05:51.5]} 26. Qxf3 {[%clk 0:05:23.7]} 26... Bxb2
{[%clk 0:05:52.7]} 27. Rcd1 {[%clk 0:05:06.5]} 27... Bf6 {[%clk 0:05:37.7]} 28.
Nh6+ {[%clk 0:04:55]} 28... Kf8 {[%clk 0:05:30.9]} 29. Ng4 {[%clk 0:04:54.3]}
29... Kf7 {[%clk 0:04:43]} 30. Nxf6 {[%clk 0:04:42.9]} 30... gxf6 {[%clk
0:04:44.9]} 31. Qh5+ {[%clk 0:04:43.7]} 31... Kg7 {[%clk 0:04:40.4]} 32. Re3
{[%clk 0:04:44.1]} 32... Qc7 {[%clk 0:04:30.1]} 33. Rg3+ {[%clk 0:04:41.8]}
33... Kh8 {[%clk 0:04:31]} 34. Qh6 {[%clk 0:04:31.8]} 34... Qe7 {[%clk 0:04:16]}
35. e5 {[%clk 0:04:27.5]} 35... fxe5 {[%clk 0:04:16.2]} 36. Bxh7 {[%clk
0:04:25.1]} 1-0